[Event "SixDays Budapest January IM-A 2025"]
[Site "Budapest"]
[Date "2025.01.30"]
[Round "7.5"]
[White "Mauron, Pierre"]
[Black "Golubovskis, Maksims"]
[Result "1/2-1/2"]
[Annotator "TA"]
[ECO "B92"]
[WhiteElo "2016"]
[BlackElo "2237"]
[PlyCount "120"]
[EventDate "2025.01.24"]
[EventType "tourn"]
[EventCountry "HUN"]
[SourceTitle "playchess.com"]
[Source "ChessBase"]
[SourceQuality "1"]
[TimeControl "5400+30"]

{[%evp 20,120,84,94,95,95,118,109,114,85,62,70,66,12,25,14,29,18,18,21,31,0,14,0,0,0,11,1,40,36,37,30,40,16,16,12,72,25,16,16,58,13,18,0,4,-15,6,0,-5,-7,0,-29,-12,-48,-44,-39,-10,-22,0,0,0,0,0,-65,-43,-40,0,-156,-140,-230,-230,-246,-123,-150,-75,-111,-75,-85,-75,-70,0,0,0,-20,-20,-44,0,0,0,0,0,0,0,0,0,0,0,0,0,0,0,0,0]} 1. e4 {[%emt 0:00:02]} c5 {[%emt 0:03:50]} 2. Nf3 {[%emt 0:00:09]} d6 {[%emt 0:00:55]} 3. d4 {[%emt 0:00:14]} Nf6 {[%emt 0:00:22]} 4. Nc3 {[%emt 0:00:57]} cxd4 {[%emt 0:00:24]} 5. Nxd4 {[%emt 0:00:06]} a6 {[%emt 0:00:59]} 6. Be2 {[%emt 0:00:08]} g6 {[%emt 0:01:07]} 7. Be3 {[%emt 0:03:46]} Bg7 {[%emt 0:00:24]} 8. Qd2 {[%emt 0:01:58]} Nc6 {[%emt 0:06:47]} 9. O-O-O {[%emt 0:04:13]} Nxd4 {[%emt 0:00:50]} 10. Bxd4 {[%emt 0:00:02]} O-O {[%emt 0:00:43]} 11. h4 {[%emt 0:06:32] White is more active.} Be6 {[%emt 0:08:00] B72: Sicilian Dragon: 6 Be3, lines with h3+Bc4 and sidelines.} 12. h5 {[%emt 0:11:10]} b5 $146 {[%emt 0:00:13]} (12... Rc8 13. g4 Qa5 14. f4 Rxc3 15. Qxc3 Qxa2 16. Bf3 Rc8 17. Qa3 Qc4 18. Qd3 Nxg4 19. Bxg7 Qxd3 20. Rxd3 {0-1 Tanenbaum,Z (2247)-Raja,H (2510) Aimchess Play In op rapid 2023 (5)}) 13. hxg6 {[%emt 0:01:15]} fxg6 {[%emt 0:00:20] White is better.} 14. f3 {[%emt 0:02:22]} Qa5 {[%emt 0:09:47]} 15. a3 {[%emt 0:10:42]} Rfc8 {[%emt 0:07:18]} 16. Nd5 {[%emt 0:04:27]} ({White should try} 16. Qg5 $14) 16... Qxd2+ $11 {[%emt 0:01:04]} 17. Rxd2 {[%emt 0:00:30]} Bxd5 {[%emt 0:02:28]} 18. Bxf6 {[%emt 0:04:21]} Bxf6 {[%emt 0:00:18]} 19. Rxd5 {[%emt 0:00:22]} Be5 {[%emt 0:01:09]} 20. c3 {[%emt 0:02:25]} Kg7 {[%emt 0:03:39]} 21. Kc2 {[%emt 0:03:09]} h5 {[%emt 0:00:51]} 22. Kb3 {[%emt 0:01:41]} e6 {[%emt 0:03:23]} 23. Rdd1 {[%emt 0:01:22]} Kf6 {[%emt 0:03:28]} 24. Rh3 {[%emt 0:02:25]} Ke7 {[%emt 0:12:47]} 25. g3 {[%emt 0:01:21]} Bf6 {[%emt 0:02:14]} 26. Kc2 {[%emt 0:05:56]} Rc5 {[%emt 0:01:49]} 27. f4 {[%emt 0:06:32]} e5 {[%emt 0:09:25]} (27... Rh8 $11) 28. Rf1 {[%emt 0:02:55]} (28. f5 $16) 28... exf4 {[%emt 0:02:37]} 29. gxf4 {[%emt 0:00:48]} h4 {[%emt 0:00:58]} 30. Rg1 {[%emt 0:03:06]} Kf7 {[%emt 0:02:57]} 31. Rd1 {[%emt 0:00:57]} Be7 {[%emt 0:00:30]} 32. Rd4 {[%emt 0:06:33]} Rd8 {[%emt 0:03:17]} 33. Bg4 {[%emt 0:02:50] Opposite bishops and equal position} Kg7 {[%emt 0:01:39]} 34. Rhd3 {[%emt 0:00:39]} Rf8 {[%emt 0:00:56]} 35. b4 {[%emt 0:01:45]} Rc7 {[%emt 0:00:41]} 36. e5 {[%emt 0:00:50]} dxe5 {[%emt 0:00:25]} 37. fxe5 {[%emt 0:00:02]} Kh6 {[%emt 0:02:17]} 38. Kb3 {[%emt 0:03:05]} Kg5 {[%emt 0:00:24][%cal Oc7c4]} 39. Bh3 {[%emt 0:01:27]} Rf4 {[%emt 0:01:06]} 40. Rd7 {[%emt 0:00:47]} Rxd7 {[%emt 0:00:31]} 41. Bxd7 {[%emt 0:02:59][%mdl 4096] Endgame KRB-KRB} (41. Rxd7 $11 Bf8 (41... Rf3 42. Bg2 $15) 42. Rh7) 41... Re4 {[%emt 0:00:13]} 42. a4 {[%emt 0:00:40]} Rxe5 {[%emt 0:00:44]} 43. axb5 $2 {[%emt 0:00:14]} (43. a5 $1 $11) 43... axb5 $17 {[%emt 0:00:01]} 44. c4 {[%emt 0:01:23]} (44. Rd4 $17) 44... bxc4+ $19 45. Kxc4 {[%emt 0:00:01] [#]} Kf4 {[%emt 0:00:50]} (45... Re4+ $1 $19 46. Rd4 Re1 (46... Rxd4+ 47. Kxd4 Kf4 48. b5 $17)) 46. b5 {[%emt 0:01:12]} Rc5+ {[%emt 0:00:10]} (46... Bc5 $142 {Strongly threatening ...g5.} 47. b6 Bxb6) 47. Kd4 $17 {[%emt 0:00:36]} Rc1 {[%emt 0:02:00]} 48. Kd5 {[%emt 0:00:50]} Bc5 {[%emt 0:01:04]} 49. Rb3 {[%emt 0:01:43]} g5 {[%emt 0:01:44]} ({Better is} 49... Bb6 $1 $15) 50. b6 $1 $11 {[%emt 0:00:20]} Bxb6 {[%emt 0:01:04] [#]} 51. Rxb6 {[%emt 0:00:02] KRB-KR} Rd1+ {[%emt 0:00:01]} 52. Ke6 {[%emt 0:00:25]} Rxd7 {[%emt 0:00:30]} 53. Kxd7 $15 {[%emt 0:00:06] KR-KPP. The position is equal.} h3 {[%emt 0:00:47]} 54. Rh6 {[%emt 0:00:30]} g4 {[%emt 0:00:01][%cal Bg5g4,Bg4g3][%mdl 32]} 55. Ke6 {[%emt 0:00:12]} g3 {[%emt 0:00:24]} 56. Rxh3 {[%emt 0:00:25]} g2 {[%emt 0:00:14]} 57. Rh4+ {[%emt 0:00:38]} Kf3 {[%emt 0:00:38]} 58. Rh3+ {[%emt 0:00:13]} Kf2 {[%emt 0:00:17]} (58... Kf4 $5 59. Rh4+ $8 Kf3 60. Rh3+ Kf4 $11) 59. Rh2 {[%emt 0:00:01]} Kf1 {[%emt 0:00:08]} 60. Rxg2 {[%emt 0:00:09]} Kxg2 {[%emt 0:00:02] Black had all chances to win.   Weighted Error Value: White=0.18 (very precise) /Black=0.16 (very precise)   Mistake:       	White=5     	Black=4      Inaccurate:     	White=4     	Black=6      OK:         	White=11    	Black=18     Best:        	White=6     	Black=3      Strong:       	White=1     	---} 1/2-1/2

[Event "SixDays Budapest January IM-A 2025"]
[Site "Budapest"]
[Date "2025.01.30"]
[Round "8.1"]
[White "Karacsonyi, Kata"]
[Black "Golubovskis, Maksims"]
[Result "0-1"]
[Annotator "TA"]
[ECO "B48"]
[WhiteElo "2183"]
[BlackElo "2237"]
[PlyCount "76"]
[EventDate "2025.01.24"]
[EventType "tourn"]
[EventCountry "HUN"]
[SourceTitle "playchess.com"]
[Source "ChessBase"]
[SourceQuality "1"]
[TimeControl "5400+30"]

{[%evp 17,76,24,37,19,31,4,69,-63,-79,-114,-105,-69,-110,-218,-170,-331,-343,-454,-479,-498,-488,-731,-714,-708,-679,-660,-470,-584,-460,-465,-168,-144,0,-12,4,4,0,-143,-143,-663,-647,-672,-664,-659,-635,-608,-552,-5406,-522,-600,-626,-647,-624,-650,-628,-626,-618,-1008,-1002,-904,-886]} 1. e4 {[%emt 0:02:55]} c5 {[%emt 0:03:19]} 2. Nf3 {[%emt 0:00:08]} e6 {[%emt 0:00:23]} 3. d4 {[%emt 0:00:14]} cxd4 {[%emt 0:00:10]} 4. Nxd4 {[%emt 0:00:02]} Nc6 {[%emt 0:00:16]} 5. Nc3 {[%emt 0:00:12]} Qc7 {[%emt 0:00:28]} 6. Be3 {[%emt 0:00:17]} a6 {[%emt 0:00:18]} 7. a3 {[%emt 0:00:06]} Nf6 {[%emt 0:00:53]} 8. f4 {[%emt 0:00:47]} d6 {[%emt 0:01:24]} 9. Qf3 {[%emt 0:07:35]} Be7 {[%emt 0:06:53]} 10. Be2 {[%emt 0:04:23] B82: Sicilian Scheveningen: 6 f4.} O-O {[%emt 0:08:41]} 11. O-O-O {[%emt 0:05:40]} Rb8 {[%emt 0:06:37]} (11... Bd7 $11) 12. Nb3 $146 {[%emt 0:22:32]} (12. g4 $14) (12. g4 Nxd4 13. Bxd4 b5 14. g5 Nd7 15. Rhg1 b4 16. axb4 Rxb4 17. f5 Ne5 18. Qh3 {½-½ Jumabayev,R (2602)-Wang,H (2730) Asian Continental op 17th 2018 (8)}) 12... b5 $15 {[%emt 0:02:30]} 13. g4 {[%emt 0:03:10]} b4 {[%emt 0:01:33]} 14. axb4 {[%emt 0:00:15]} Rxb4 {[%emt 0:01:50]} 15. Qh3 {[%emt 0:09:08]} (15. Bd2 $17 {was necessary.}) 15... Na5 $19 {[%emt 0:15:53]} 16. Nxa5 {[%emt 0:03:31]} (16. Nd2) 16... Qxa5 {[%emt 0:00:02]} 17. Bd3 {[%emt 0:03:48]} e5 {[%emt 0:03:57]} (17... Qa1+ 18. Kd2 Qa5 (18... Qxb2 $2 19. Rb1 $18) 19. Ra1 $11) 18. f5 {[%emt 0:01:01] [#] and g5 would now be decisive} Rxb2 {[%emt 0:01:39]} (18... Qa1+ 19. Kd2 Qa5 (19... Qxb2 $2 20. Rb1 $18) 20. Ra1 $16 (20. g5 Nxe4+ 21. Bxe4 Rxe4 $17)) 19. Kd2 {[%emt 0:07:28]} (19. Kxb2 $142 Qb4+ 20. Ka2 Qxc3 21. Bd2 (21. g5 $2 Nxe4 22. Bxe4 Qc4+ 23. Kb1 Qxe4 $19)) 19... d5 {[%emt 0:06:28]} 20. Ra1 {[%emt 0:02:02]} Ba3 {[%emt 0:06:04]} (20... Nxe4+ 21. Bxe4 Ba3 22. Rxa3 (22. Bxd5 $2 Rd8 $19) 22... Qxa3 23. Nxd5 $15) 21. exd5 {[%emt 0:03:09]} e4 {[%emt 0:03:38]} 22. Bc4 {[%emt 0:00:22]} Qb4 {[%emt 0:07:17]} 23. Rxa3 {[%emt 0:05:06]} Qxc4 {[%emt 0:02:51]} (23... Qxa3 24. g5 Nxd5 25. Bxd5 (25. Nxd5 $2 Rd8 $19) 25... Rd8) 24. Kc1 {[%emt 0:10:01]} Rb7 {[%emt 0:05:23] Really sharp! Black is more active.} ({Better is} 24... Qb4 $17 25. Bc5 Rxc2+ (25... Qxc5 26. Kxb2 h5 27. gxh5 $16) 26. Kxc2 Qxc5) 25. Rd1 $11 {[%emt 0:00:45]} Qb4 $132 {[%emt 0:00:44][%mdl 2048] Black is not keeping still} 26. Rb3 {[%emt 0:00:13]} Qa5 {[%emt 0:00:08]} 27. Rxb7 {[%emt 0:00:59]} (27. Bd4 $11 {remains equal.}) 27... Bxb7 $17 {[%emt 0:00:02]} 28. g5 $2 {[%emt 0:04:42][%mdl 8192] This move loses the game for White.} (28. Bd4 $17) 28... Qxc3 $19 {[%emt 0:01:47] Black is clearly winning.} 29. gxf6 {[%emt 0:00:05]} Rc8 {[%emt 0:00:28][%csl Gc8][%cal Rc3c2] [#]} (29... gxf6 $2 {is the wrong capture.} 30. Bd4 $18) 30. Qg2 {[%emt 0:01:59][%csl Gf6][%cal Rg2g7]} Qxe3+ {[%emt 0:00:19]} 31. Rd2 {[%emt 0:00:44][%csl Gf6][%cal Rg2g7]} Qh6 {[%emt 0:00:34]} ({And not} 31... Bxd5 32. Qxg7#) 32. fxg7 {[%emt 0:01:40]} Qxg7 {[%emt 0:00:56]} (32... Qf6 $142 {[%cal Rf6a1]} 33. Re2 Qa1+ (33... Bxd5 $2 34. Qg3 $19) (33... Qxf5 $2 34. Qxe4 Qxe4 35. Rxe4 $19) 34. Kd2 Qd4+ (34... Bxd5 $2 35. Qf2 $19) 35. Ke1 e3 (35... Bxd5 $2 36. Qg5 $19)) 33. f6 {[%emt 0:00:30]} Qxg2 {[%emt 0:00:16]} 34. Rxg2+ {[%emt 0:00:05]} Kf8 {[%emt 0:00:18][%cal Of8e8]} 35. Rg7 {[%emt 0:01:24]} Bxd5 {[%emt 0:00:18]} 36. Rxh7 {[%emt 0:00:04][%cal Rh7h8]} Ke8 {[%emt 0:00:17] aiming for ...Kd7.} 37. Kd2 {[%emt 0:00:36]} Kd7 {[%emt 0:00:23]} 38. h4 {[%emt 0:01:11]} Ke6 {[%emt 0:00:20] Weighted Error Value: White=0.97/Black=0.69  Loses game:     	White=1     	---        Mistake:       	White=5     	Black=3      Inaccurate:     	White=3     	---        OK:         	White=5     	Black=4      Best:        	White=2     	Black=3} 0-1

[Event "SixDays Budapest January IM-A 2025"]
[Site "Budapest"]
[Date "2025.01.30"]
[Round "8.2"]
[White "Varga, Zoltan"]
[Black "Mauron, Pierre"]
[Result "1/2-1/2"]
[Annotator "TA"]
[ECO "B54"]
[WhiteElo "2304"]
[BlackElo "2016"]
[PlyCount "90"]
[EventDate "2025.01.24"]
[EventType "tourn"]
[EventCountry "HUN"]
[SourceTitle "playchess.com"]
[Source "ChessBase"]
[SourceQuality "1"]
[TimeControl "5400+30"]

{[%evp 13,90,20,17,17,15,21,42,18,35,0,16,13,37,42,37,35,57,35,120,114,114,117,121,126,177,168,160,187,187,129,141,77,88,78,81,48,110,75,75,75,79,71,67,36,25,0,0,0,10,0,83,6,6,0,0,-289,-72,-68,-39,-295,-286,-267,-138,-270,-57,-41,-76,-39,-46,-87,-87,-87,-87,-87,-87,-88,-53,-84,0]} 1. e4 {[%emt 0:22:14]} c5 {[%emt 0:00:06]} 2. Nf3 {[%emt 0:00:03]} d6 {[%emt 0:00:07]} 3. d4 {[%emt 0:00:04]} cxd4 {[%emt 0:00:07]} 4. Nxd4 {[%emt 0:00:04]} Nf6 {[%emt 0:00:04]} 5. f3 {[%emt 0:00:03]} e5 {[%emt 0:01:10]} 6. Nb3 {[%emt 0:00:08]} Be6 {[%emt 0:01:12]} 7. c4 {[%emt 0:00:28]} Be7 {[%emt 0:00:51]} 8. Be3 {[%emt 0:00:10] B55: Sicilian: 2...d6 3 d4 cxd4 4 Nxd4 Nf6 5 f3.} O-O {[%emt 0:01:58][%cal Ob7b5]} 9. Nc3 {[%emt 0:00:16]} a6 {[%emt 0:01:28]} 10. Rc1 {[%emt 0:01:30] White is slightly better.} Nbd7 {[%emt 0:00:57]} 11. Be2 {[%emt 0:01:33]} Rc8 {[%emt 0:03:33]} 12. Nd5 {[%emt 0:02:42]} Bxd5 {[%emt 0:01:04]} 13. cxd5 {[%emt 0:00:04]} Rxc1 $146 {[%emt 0:02:04]} (13... b5 14. Qd2 Nb6 15. Na5 Na8 16. Nc6 Qd7 17. O-O Qb7 18. Rc2 Rfe8 19. Rfc1 Bf8 {½-½ Button Rabl,J (1435)-Bartash,S (1661) Wch U10 Montesilvano 2024 (7)}) 14. Qxc1 {[%emt 0:00:06]} Ne8 {[%emt 0:00:46]} 15. O-O {[%emt 0:00:30] Black is weak on the light squares} h6 {[%emt 0:01:45]} ({Black should try} 15... f5 $14) 16. Qc3 $36 {[%emt 0:00:21][%mdl 2048] White is on the roll.} Bg5 {[%emt 0:01:37]} 17. Bf2 {[%emt 0:00:02]} f5 {[%emt 0:05:38]} 18. exf5 {[%emt 0:01:02]} Rxf5 {[%emt 0:00:22]} (18... Qb8 $16 19. Qb4 Bd8) 19. Na5 $18 {[%emt 0:01:27]} Qa8 {[%emt 0:02:39]} 20. Qb3 {[%emt 0:01:40]} b5 {[%emt 0:02:53]} 21. Qc2 {[%emt 0:05:32]} (21. Nc6 $18) 21... Rf8 {[%emt 0:03:25]} 22. h4 {[%emt 0:02:19]} (22. Nc6 $142) 22... Bd8 $16 {[%emt 0:02:23]} 23. Nc6 {[%emt 0:02:51]} Nef6 {[%emt 0:05:48]} 24. a4 {[%emt 0:01:33] White is much more active.} Nb6 {[%emt 0:05:06]} (24... Bb6 $14) 25. axb5 {[%emt 0:05:15][%csl Oc6] Strong Square White (c6)} axb5 {[%emt 0:00:21]} 26. Bxb5 {[%emt 0:06:32]} Nbxd5 {[%emt 0:02:10]} 27. Rd1 {[%emt 0:00:29]} Kh8 {[%emt 0:01:11]} 28. Qb3 {[%emt 0:06:17]} Nf4 {[%emt 0:03:47]} 29. Rxd6 {[%emt 0:00:59][%cal Og2g3]} Bc7 {[%emt 0:01:09]} 30. Rd1 {[%emt 0:00:05]} e4 {[%emt 0:02:06]} 31. Bc5 {[%emt 0:00:06]} Rc8 {[%emt 0:04:36]} (31... Re8 $11 {remains equal.}) 32. Bd4 {[%emt 0:01:36] A strong pair of Bishops.} ({White should play} 32. Qa3 $16) 32... Qb7 $11 {[%emt 0:01:47]} 33. Bxf6 {[%emt 0:07:44]} (33. Ba4 {simplifies} Ne2+ 34. Kf1 Qxb3 35. Bxb3 Nxd4 36. Rxd4 Bb6 37. Rd6) 33... gxf6 {[%emt 0:00:51]} 34. Qc4 {[%emt 0:00:00][%mdl 8192]} (34. fxe4 Rg8 35. Kh1 (35. Rd2 Rg4 $15) 35... Rg4 $19 (35... Nxg2 $2 36. Qe6 $18) (35... Rxg2 36. Qf7 $11)) (34. Kh1 $11 {and White stays safe.} exf3 35. gxf3) 34... Be5 $2 {[%emt 0:02:05]} (34... Rg8 $19 {has better winning chances.} 35. g4 exf3) 35. fxe4 $17 {[%emt 0:05:51]} Qg7 $1 {[%emt 0:03:20][%csl Gf4][%cal Rg7g2]} (35... Rg8 36. Nxe5 (36. Rd2 Qb6+ 37. Kf1 Qe3 $17) 36... Qb6+ (36... Rxg2+ $2 37. Kh1 $18) 37. Kf1 (37. Kh1 Qf2 $11) 37... fxe5 38. Qc6 Qxc6 39. Bxc6 $14) 36. Rd2 {[%emt 0:05:51][%mdl 8192]} (36. Qf1 $15) 36... Qg3 $19 {[%emt 0:03:51]} 37. Kf1 {[%emt 0:00:37] [#] Prevents Qe1+.} Qxh4 {[%emt 0:04:44]} (37... Ra8 $1 $19 {[%cal Ra8a1] ( -> ...Ra1+)} 38. Ba4 Qxh4 39. Rd8+ (39. Nxe5 $2 fxe5 40. Qc5 Qh1+ 41. Qg1 Qxg1+ 42. Kxg1 Rxa4 $19) 39... Rxd8 40. Nxd8 Bc7 (40... Bxb2 41. Qc5 $17)) 38. Qc5 {[%emt 0:00:18]} (38. Rd8+ $17 Rxd8 39. Nxd8 Qh1+ (39... Bxb2 40. Nf7+ Kh7 41. Nd6 $17) 40. Kf2) 38... Ra8 $2 {[%emt 0:03:01]} (38... Nh5 $19 {Threatens to win with ...Ng3+.} 39. Qb4 Ng3+ 40. Ke1 Nxe4+ 41. Kd1 Qh1+ 42. Kc2 Nxd2 43. Qxd2 Qh4) 39. Rd8+ $15 {[%emt 0:11:45]} Rxd8 {[%emt 0:00:37]} 40. Nxd8 {[%emt 0:00:02]} Qh1+ {[%emt 0:01:09]} 41. Kf2 {[%emt 0:01:40]} Qxg2+ {[%emt 0:00:55]} (41... Nxg2 $2 {perishes.} 42. Qf8+ Kh7 43. Qe7+ Kh8 44. Nf7+ Kg8 45. Nxh6+ (45. Nxe5 Qe1+ 46. Kxg2 Qxe4+ 47. Kf2 fxe5 $18) 45... Kh8 46. Qd8+ (46. Nf7+ Kg8 $18) 46... Kh7 47. Qg8+ Kxh6 48. Qh8+ (48. Qxg2 Bd4+ 49. Kg3 Qe1+ 50. Kh3 Be5 $11) 48... Kg5 49. Qxh1 $18) 42. Ke1 {[%emt 0:00:01]} Qxe4+ {[%emt 0:03:43]} 43. Kd2 {[%emt 0:00:03]} Qg2+ {[%emt 0:01:22]} (43... Bxb2 $6 44. Qf8+ Kh7 45. Qf7+ Kh8 46. Qf8+ Kh7 47. Qf7+ Kh8 48. Qf8+ $11) 44. Kd1 {[%emt 0:00:05]} Qh1+ {[%emt 0:04:10]} (44... Bxb2 45. Qf8+ Kh7 46. Qe7+ Kg8 (46... Kg6 47. Be8+ Kf5 48. Qd7+ Ke4 49. Qe7+ Kf5 50. Qd7+ Ke4 51. Qe7+ Kf5 $11) 47. Qf7+ Kh8 48. Qf8+ Kh7 49. Qe7+ Kh8 50. Qf8+ $11) 45. Kd2 {[%emt 0:00:07] [#] Strongly threatening Qf8+.} Qg2+ {[%emt 0:00:12] White used his chance.   Weighted Error Value: White=0.40/Black=0.40  Loses game:     	White=2     	---        Missed win:     	---       	Black=2      Mistake:       	White=4     	Black=6      Inaccurate:     	White=6     	Black=1      OK:         	White=13    	Black=8      Best:        	White=3     	Black=7      Strong:       	---       	Black=1} ({Of course not} 45... Bxb2 $6 46. Qf8+ Kh7 47. Qe7+ Kh8 48. Qf8+ Kh7 49. Qe7+ Kh8 50. Qf8+ $11) (45... Qh2+ $1 $17 46. Kd1 Qh5+ (46... Bxb2 47. Qf8+ Kh7 48. Bd3+ Nxd3 49. Qf7+ Kh8 50. Qe8+ Kh7 51. Qf7+ Kh8 52. Qf8+ Kh7 53. Qf7+ $11) 47. Kd2 Qh2+ (47... Bxb2 48. Qf8+ Kh7 49. Qe7+ Kh8 50. Nf7+ Kg8 51. Qe8+ Kh7 52. Qh8+ Kg6 53. Qg8+ Kf5 54. Qh7+ Ke6 55. Nd8+ Kd6 56. Nb7+ Kd5 57. Qd7+ Ke4 58. Bc6+ Nd5 59. Nc5+ Kd4 60. Nb3+ Kc4 61. Kc2 $16)) 1/2-1/2

[Event "SixDays Budapest January IM-A 2025"]
[Site "Budapest"]
[Date "2025.01.30"]
[Round "8.3"]
[White "Kustar, Sandor"]
[Black "Kiremitciyan, Ari"]
[Result "1/2-1/2"]
[Annotator "TA"]
[ECO "A04"]
[WhiteElo "2240"]
[BlackElo "2251"]
[PlyCount "134"]
[EventDate "2025.01.24"]
[EventType "tourn"]
[EventCountry "HUN"]
[SourceTitle "playchess.com"]
[Source "ChessBase"]
[SourceQuality "1"]
[TimeControl "5400+30"]

{[%evp 10,134,35,27,43,37,46,35,41,52,43,35,35,39,70,61,63,68,73,56,63,64,79,79,95,75,77,82,89,66,74,64,61,60,58,39,44,47,50,34,58,33,26,21,23,14,12,18,27,-21,3,10,68,73,67,63,76,71,65,66,67,45,48,45,50,49,184,174,177,169,177,170,174,8,8,8,8,8,37,0,0,0,8,0,0,0,0,0,0,0,0,0,0,0,0,0,0,0,0,0,0,0,29967,29968,29968,29969,29968,29968,29969,29969,29967,0,0,0,0,0,0,0,0,0,0,0,0,0,0,0,0]} 1. Nf3 {[%emt 0:00:06]} Nc6 {[%emt 0:00:11]} 2. d4 {[%emt 0:00:34]} d5 {[%emt 0:00:50]} 3. Bf4 {[%emt 0:00:10]} Bg4 {[%emt 0:01:23]} 4. e3 {[%emt 0:01:00]} e6 {[%emt 0:01:09][%cal Be7e6,Be6e5][%mdl 32]} 5. c4 {[%emt 0:01:46]} Nf6 {[%emt 0:04:37]} 6. Nc3 {[%emt 0:00:13]} Bd6 {[%emt 0:01:00] D02: 1 d4 d5 2 Nf3 sidelines, including 2...Nf6 3 g3 and 2...Nf6 3 Bf4.} 7. Bg5 {[%emt 0:11:16]} dxc4 {[%emt 0:00:13]} 8. Bxc4 {[%emt 0:00:47]} O-O {[%emt 0:02:24] White is slightly better.} 9. a3 $146 {[%emt 0:04:15]} (9. h3 Bh5 10. g4 Bg6 11. h4 Bb4 12. h5 Be4 13. h6 g6 14. Rh3 e5 15. Kf1 Bxc3 16. bxc3 {1-0 Moradiabadi,E (2514)-Hague,B (2381) NZL-ch op-A 130th 2023 (8)}) 9... e5 {[%emt 0:06:13]} 10. d5 {[%emt 0:01:36]} Nb8 {[%emt 0:05:03][%cal Bc6b8,Bb8d7,Bd7f8,Bf8g6][%mdl 32]} 11. h3 {[%emt 0:03:28]} Bc8 {[%emt 0:01:53]} 12. e4 {[%emt 0:05:29]} Nbd7 {[%emt 0:02:08]} 13. O-O {[%emt 0:09:02] White has space advantage and is better White is much more active. The black rooks are passive.} a6 {[%emt 0:02:11]} 14. Re1 {[%emt 0:06:37]} Re8 {[%emt 0:01:14]} 15. Bf1 {[%emt 0:00:50]} Nf8 {[%emt 0:00:31]} 16. Nd2 {[%emt 0:02:49]} h6 {[%emt 0:04:01]} 17. Be3 {[%emt 0:00:05]} Ng6 {[%emt 0:04:44]} 18. Nc4 {[%emt 0:00:26]} Be7 {[%emt 0:02:26]} 19. Qd2 {[%emt 0:02:30]} Rf8 {[%emt 0:00:55]} 20. g3 {[%emt 0:08:08]} Ne8 {[%emt 0:04:10]} 21. Rac1 {[%emt 0:17:13]} Nd6 {[%emt 0:01:31]} 22. Nxd6 {[%emt 0:02:36]} Bxd6 {[%emt 0:00:12]} 23. Bg2 {[%emt 0:03:34]} Bd7 {[%emt 0:03:04]} 24. Rc2 {[%emt 0:00:02]} b5 {[%emt 0:05:41][%cal Bb7b5,Bb5b4][%mdl 32]} 25. Rec1 {[%emt 0:00:45]} a5 {[%emt 0:00:19]} 26. Nd1 {[%emt 0:01:01]} f5 {[%emt 0:01:39]} 27. exf5 {[%emt 0:01:10]} Bxf5 {[%emt 0:00:03]} 28. Rc3 {[%emt 0:00:32]} b4 {[%emt 0:00:35]} 29. Rb3 {[%emt 0:01:01]} (29. axb4 {deserves consideration.} axb4 30. Rc6) 29... Qd7 {[%emt 0:00:11]} (29... Qe7 $5) 30. g4 {[%emt 0:02:23]} Bxg4 {[%emt 0:05:02]} 31. hxg4 $14 {[%emt 0:00:05]} Qxg4 {[%emt 0:00:33] [#]} 32. Bxh6 $1 {[%emt 0:08:00]} gxh6 {[%emt 0:09:29]} 33. Rg3 {[%emt 0:00:06]} Qh5 {[%emt 0:01:28][%cal Oe5e4]} 34. Be4 {[%emt 0:00:39]} Rf6 {[%emt 0:00:02]} 35. Ne3 $36 {[%emt 0:02:20][%mdl 2048] White fights for an advantage. Really sharp!} Kh8 {[%emt 0:01:44] and ...Nf4 should not be overlooked} 36. Ng4 $1 {[%emt 0:02:25]} Rf4 {[%emt 0:06:07]} 37. Bxg6 $1 {[%emt 0:00:29]} Qxg6 {[%emt 0:00:02] [#]} (37... Qxg4 $1 $14 38. Rxg4 Rxg4+ 39. Kh2 Rxg6) 38. Nxe5 $1 $18 {[%emt 0:01:03][%mdl 512]} Qf5 {[%emt 0:00:39]} 39. Ng6+ {[%emt 0:01:58]} Kh7 {[%emt 0:00:12]} 40. Nxf4 {[%emt 0:00:14]} Bxf4 {[%emt 0:00:18]} 41. Qc2 {[%emt 0:00:32]} (41. Qd4 $1 $18 {[%csl Gg3][%cal Rd4g7]} Bxg3 42. fxg3) 41... Qxc2 $11 {[%emt 0:00:16]} 42. Rxc2 {[%emt 0:00:01]} Bxg3 {[%emt 0:00:16]} 43. fxg3 {[%emt 0:00:04][%mdl 4096] Endgame KR-KR} Ra7 {[%emt 0:00:32]} 44. Rc6 {[%emt 0:00:03]} bxa3 {[%emt 0:00:38]} 45. bxa3 {[%emt 0:00:02]} a4 {[%emt 0:00:40]} 46. Kf2 {[%emt 0:00:05]} Rb7 {[%emt 0:02:20]} 47. Ke3 {[%emt 0:00:02]} Rb3+ {[%emt 0:00:33]} 48. Ke4 {[%emt 0:00:06]} Rxa3 {[%emt 0:00:40]} 49. Kf5 {[%emt 0:03:10]} Rxg3 {[%emt 0:04:20]} 50. Rxc7+ {[%emt 0:00:35]} Rg7 {[%emt 0:00:01]} 51. d6 {[%emt 0:00:57][%cal Bd5d6,Bd6d7][%mdl 32]} a3 {[%emt 0:00:01]} 52. Rc2 {[%emt 0:00:02]} Ra7 {[%emt 0:02:22]} 53. Ra2 {[%emt 0:00:48] Hoping for Ke6.} h5 {[%emt 0:07:30]} 54. Ke6 {[%emt 0:00:26]} Ra6 {[%emt 0:01:12]} 55. Ke7 {[%emt 0:00:33]} Ra4 $2 {[%emt 0:00:20][%mdl 8192]} (55... Ra7+ $11 56. d7 Kg6) 56. d7 {[%emt 0:00:41]} Re4+ {[%emt 0:00:02]} 57. Kf6 {[%emt 0:00:35]} Rd4 {[%emt 0:01:03] [#]} 58. Ke6 $1 {[%emt 0:00:05]} ({And not} 58. Rxa3 Rxd7 59. Ra5 Kh6 $11) ({Less strong is} 58. Ke7 Kh6 $16) 58... Kg6 {[%emt 0:08:57]} 59. Rxa3 {[%emt 0:00:36]} h4 {[%emt 0:00:02] [#]} 60. Ra6 $2 {[%emt 0:00:28]} (60. Ra5 $1 {mates} h3 61. Ra3 Re4+ 62. Kd5 Re1 63. Rxh3 (63. d8=R Rd1+ 64. Ke6 Rxd8 $11) (63. Rg3+ Kf7 $11) 63... Rd1+ 64. Ke6 Re1+ 65. Kd6 Rd1+ 66. Ke7) 60... Rxd7 $1 {[%emt 0:01:00] The position is equal.} 61. Kxd7+ {[%emt 0:00:02] KR-KP} Kf5 {[%emt 0:00:08]} 62. Rh6 {[%emt 0:01:33]} Kg4 {[%emt 0:00:06]} 63. Ke6 {[%emt 0:00:06]} h3 {[%emt 0:00:01]} 64. Ke5 {[%emt 0:00:07]} Kg3 {[%emt 0:00:05]} 65. Ke4 {[%emt 0:00:09]} h2 {[%emt 0:00:02]} 66. Ke3 {[%emt 0:00:05] White threatens Rg6+ and mate.} Kg2 {[%emt 0:00:11]} 67. Rg6+ {[%emt 0:00:12]} Kf1 {[%emt 0:01:33] White really could win this.   Weighted Error Value: White=0.16 (very precise) /Black=0.22 (precise)   Loses game:     	---       	Black=1      Missed win:     	White=1     	---        Mistake:       	White=1     	Black=2      Inaccurate:     	White=1     	Black=2      OK:         	White=16    	Black=29     Best:        	White=5     	Black=5      Strong:       	White=2     	---        Brilliant:      	White=2     	---} 1/2-1/2